{"text_format":"1","workbook":"xlsx","n_sheets":3,"sheets":["Map Mauritius","DataDistrict","Control"],"not_rendered":{"charts":0,"images":3,"macros":1,"external_links":0,"defined_names":47,"comments":0,"pivot_tables":0},"unopened":[],"bounds":{"document_bytes":16777216,"sheet_cells":100000,"rows_first":2000,"rows_last":500,"rows_between":2000,"halvings":0,"cell_chars":16384,"cell_head_chars":4096},"cells_cut":0,"cells_raw":0,"read":"whole","date_system":"1900"}

{"sheet":"Map Mauritius","index":0,"n_rows":15,"n_cols":14,"rows_kept":15,"cut":false,"hidden":false,"merged":[]}
[]
[null,"Choropleth Map of Mauritius"]
[]
[]
[]
[null,null,null,null,null,null,null,null,null,null,null,null,null,"Area"]
[null,null,null,null,null,null,null,null,null,null,null,null,"Pamplemousses",179.7]
[null,null,null,null,null,null,null,null,null,null,null,null,"Riviere du Rempart",146.80000000000001]
[null,null,null,null,null,null,null,null,null,null,null,null,"Flacq",297.5]
[null,null,null,null,null,null,null,null,null,null,null,null,"Grand Port",260.60000000000002]
[null,null,null,null,null,null,null,null,null,null,null,null,"Savanne",246.9]
[null,null,null,null,null,null,null,null,null,null,null,null,"Black River",254.6]
[null,null,null,null,null,null,null,null,null,null,null,null,"Port Louis",39.700000000000003]
[null,null,null,null,null,null,null,null,null,null,null,null,"Moka",234.3]
[null,null,null,null,null,null,null,null,null,null,null,null,"Plaines Wilhems",197.6]

{"sheet":"DataDistrict","index":1,"n_rows":780,"n_cols":15,"rows_kept":780,"cut":false,"hidden":false,"merged":[]}
[]
[null,"Data"]
[]
[null,"Indicators","Pamplemousses","Riviere du Rempart","Flacq","Grand Port","Savanne","Black River","Port Louis","Moka","Plaines Wilhems","Mauritius (Average)","Min Scale","Max Scale","Definitions of Indicators"]
[null,"Hazard",8508695.5129071269,2035910.0618687361,241841747.28387782,71238253.265209392,13236115.826918811,85286402.358582541,21064188.881982502,31489271.708537254,41490318.697410591,{"$f":"IF(B5=\"\",\"\",AVERAGE(C5:K5))","v":57354544.844143875},{"$f":"IF(B5=\"\",\"\",MIN(C5:K5))","v":2035910.0618687361},{"$f":"IF(B5=\"\",\"\",MAX(C5:K5))","v":241841747.28387782},"Hazard prone area, m2 (flood risk)"]
[null,"Hazkm2",8.5086955129071278,2.0359100618687362,241.84174728387782,71.238253265209394,13.236115826918811,85.286402358582535,21.064188881982503,31.489271708537256,41.490318697410594,{"$f":"IF(B6=\"\",\"\",AVERAGE(C6:K6))","v":57.354544844143867},{"$f":"IF(B6=\"\",\"\",MIN(C6:K6))","v":2.0359100618687362},{"$f":"IF(B6=\"\",\"\",MAX(C6:K6))","v":241.84174728387782},"Hazard prone area, km2 (flood risk)"]
[null,"Area",179.7,146.80000000000001,297.5,260.60000000000002,246.9,254.6,39.700000000000003,234.3,197.6,206.4111111111111,39.700000000000003,297.5,"Area of district"]
[null,"Pop16",140279,108042,138543,112985,68547,81359,119554,83346,368558,135690.33333333334,68547,368558,"Population of district as of 2016"]
[null,"Hzprop",{"$f":"C6/C7","v":4.7349446371213848E-2},1.3868597151694388E-2,0.81291343624832879,0.27336244537685872,5.3609217605989509E-2,0.33498194170692275,0.53058410282071788,0.13439723307100834,0.2099712484686771,0.26789307431349013,1.3868597151694388E-2,0.81291343624832879,"Proportion of area at risk (hazard area/area of district)"]
[null,"PopDen",{"$f":"C8/C7","v":780.62882582081249},{"$f":"D8/D7","v":735.98092643051768},465.69075630252098,433.55717574827315,277.6306196840826,319.55616653574236,3011.4357682619643,355.72343149807938,1865.1720647773279,916.15285945103562,277.6306196840826,3011.4357682619643,"Population density based on 2016 population"]
[null,"Vulpop",{"$f":"C8/C6","v":16486.546003110117},{"$f":"D8/D6","v":53068.159553585392},572.86635395242968,1586.0158667755888,5178.785143341921,953.95042761834452,5675.6992006590817,2646.8062129681944,8882.9879251566617,2365.816583534232,572.86635395242968,53068.159553585392,"Vulnerable population (population per hazard area = proportion of area at risk x 1/population density) OR Pop of district/hazard area"]
[null,"VulHazIndx",9.4674742656247943,8.9259840919211033,5.6479021850078315,5.2581857962492711,3.3671069530961191,3.8755804077792382,36.522723342459038,4.3142173616848547,22.620825596177749,11.111111111111111,3.3671069530961191,36.522723342459038," Index = density weighted value for each district (population density x proportion of total population at risk (out of total population of country))/sum on density weighted value for whole country x 100"]
[null,null,null,null,null,null,null,null,null,null,null,"","",""]
[null,null,null,null,null,null,null,null,null,null,null,"","",""]
[null,null,null,null,null,null,null,null,null,null,null,"","",""]
[null,null,null,null,null,null,null,null,null,null,null,"","",""]
[null,null,null,null,null,null,null,null,null,null,null,"","",""]
[null,null,null,null,null,null,null,null,null,null,null,"","",""]
[null,null,null,null,null,null,null,null,null,null,null,"","",""]
[null,null,null,null,null,null,null,null,null,null,null,"","",""]
[null,null,null,null,null,null,null,null,null,null,null,"","",""]
[null,null,null,null,null,null,null,null,null,null,null,"","",""]
[null,null,null,null,null,null,null,null,null,null,null,"","",""]
[null,null,null,null,null,null,null,null,null,null,null,"","",""]
[null,null,null,null,null,null,null,null,null,null,null,"","",""]
[null,null,null,null,null,null,null,null,null,null,null,"","",""]
[null,null,null,null,null,null,null,null,null,null,null,"","",""]
[null,null,null,null,null,null,null,null,null,null,null,"","",""]
[null,null,null,null,null,null,null,null,null,null,null,"","",""]
[null,null,null,null,null,null,null,null,null,null,null,"","",""]
[null,null,null,null,null,null,null,null,null,null,null,"","",""]
[null,null,null,null,null,null,null,null,null,null,null,"","",""]
[null,null,null,null,null,null,null,null,null,null,null,"","",""]
[null,null,null,null,null,null,null,null,null,null,null,"","",""]
[null,null,null,null,null,null,null,null,null,null,null,"","",""]
[null,null,null,null,null,null,null,null,null,null,null,"","",""]
[null,null,null,null,null,null,null,null,null,null,null,"","",""]
[null,null,null,null,null,null,null,null,null,null,null,"","",""]
[null,null,null,null,null,null,null,null,null,null,null,"","",""]
[null,null,null,null,null,null,null,null,null,null,null,"","",""]
[null,null,null,null,null,null,null,null,null,null,null,"","",""]
[null,null,null,null,null,null,null,null,null,null,null,"","",""]
[null,null,null,null,null,null,null,null,null,null,null,"","",""]
[null,null,null,null,null,null,null,null,null,null,null,"","",""]
[null,null,null,null,null,null,null,null,null,null,null,"","",""]
[null,null,null,null,null,null,null,null,null,null,null,"","",""]
[null,null,null,null,null,null,null,null,null,null,null,"","",""]
[null,null,null,null,null,null,null,null,null,null,null,"","",""]
[null,null,null,null,null,null,null,null,null,null,null,"","",""]
[null,null,null,null,null,null,null,null,null,null,null,"","",""]
[null,null,null,null,null,null,null,null,null,null,null,"","",""]
[null,null,null,null,null,null,null,null,null,null,null,"","",""]
[null,null,null,null,null,null,null,null,null,null,null,"","",""]
[null,null,null,null,null,null,null,null,null,null,null,"","",""]
[null,null,null,null,null,null,null,null,null,null,null,"","",""]
[null,null,null,null,null,null,null,null,null,null,null,"","",""]
[null,null,null,null,null,null,null,null,null,null,null,"","",""]
[null,null,null,null,null,null,null,null,null,null,null,"","",""]
[null,null,null,null,null,null,null,null,null,null,null,"","",""]
[null,null,null,null,null,null,null,null,null,null,null,"","",""]
[null,null,null,null,null,null,null,null,null,null,null,"","",""]
[null,null,null,null,null,null,null,null,null,null,null,"","",""]
[null,null,null,null,null,null,null,null,null,null,null,"","",""]
[null,null,null,null,null,null,null,null,null,null,null,"","",""]
[null,null,null,null,null,null,null,null,null,null,null,"","",""]
[null,null,null,null,null,null,null,null,null,null,null,"","",""]
[null,null,null,null,null,null,null,null,null,null,null,"","",""]
[null,null,null,null,null,null,null,null,null,null,null,"","",""]
[null,null,null,null,null,null,null,null,null,null,null,"","",""]
[null,null,null,null,null,null,null,null,null,null,null,{"$f":"IF(B70=\"\",\"\",AVERAGE(C70:K70))","v":""},{"$f":"IF(B70=\"\",\"\",MIN(C70:K70))","v":""},{"$f":"IF(B70=\"\",\"\",MAX(C70:K70))","v":""}]
[null,null,null,null,null,null,null,null,null,null,null,"","",""]
[null,null,null,null,null,null,null,null,null,null,null,"","",""]
[null,null,null,null,null,null,null,null,null,null,null,"","",""]
[null,null,null,null,null,null,null,null,null,null,null,"","",""]
[null,null,null,null,null,null,null,null,null,null,null,"","",""]
[null,null,null,null,null,null,null,null,null,null,null,"","",""]
[null,null,null,null,null,null,null,null,null,null,null,"","",""]
[null,null,null,null,null,null,null,null,null,null,null,"","",""]
[null,null,null,null,null,null,null,null,null,null,null,"","",""]
[null,null,null,null,null,null,null,null,null,null,null,"","",""]
[null,null,null,null,null,null,null,null,null,null,null,"","",""]
[null,null,null,null,null,null,null,null,null,null,null,"","",""]
[null,null,null,null,null,null,null,null,null,null,null,"","",""]
[null,null,null,null,null,null,null,null,null,null,null,"","",""]
[null,null,null,null,null,null,null,null,null,null,null,"","",""]
[null,null,null,null,null,null,null,null,null,null,null,"","",""]
[null,null,null,null,null,null,null,null,null,null,null,"","",""]
[null,null,null,null,null,null,null,null,null,null,null,"","",""]
[null,null,null,null,null,null,null,null,null,null,null,"","",""]
[null,null,null,null,null,null,null,null,null,null,null,"","",""]
[null,null,null,null,null,null,null,null,null,null,null,"","",""]
[null,null,null,null,null,null,null,null,null,null,null,"","",""]
[null,null,null,null,null,null,null,null,null,null,null,"","",""]
[null,null,null,null,null,null,null,null,null,null,null,"","",""]
[null,null,null,null,null,null,null,null,null,null,null,"","",""]
[null,null,null,null,null,null,null,null,null,null,null,"","",""]
[null,null,null,null,null,null,null,null,null,null,null,"","",""]
[null,null,null,null,null,null,null,null,null,null,null,"","",""]
[null,null,null,null,null,null,null,null,null,null,null,"","",""]
[null,null,null,null,null,null,null,null,null,null,null,"","",""]
[null,null,null,null,null,null,null,null,null,null,null,"","",""]
[null,null,null,null,null,null,null,null,null,null,null,"","",""]
[null,null,null,null,null,null,null,null,null,null,null,"","",""]
[null,null,null,null,null,null,null,null,null,null,null,"","",""]
[null,null,null,null,null,null,null,null,null,null,null,"","",""]
[null,null,null,null,null,null,null,null,null,null,null,"","",""]
[null,null,null,null,null,null,null,null,null,null,null,"","",""]
[null,null,null,null,null,null,null,null,null,null,null,"","",""]
[null,null,null,null,null,null,null,null,null,null,null,"","",""]
[null,null,null,null,null,null,null,null,null,null,null,"","",""]
[null,null,null,null,null,null,null,null,null,null,null,"","",""]
[null,null,null,null,null,null,null,null,null,null,null,"","",""]
[null,null,null,null,null,null,null,null,null,null,null,"","",""]
[null,null,null,null,null,null,null,null,null,null,null,"","",""]
[null,null,null,null,null,null,null,null,null,null,null,"","",""]
[null,null,null,null,null,null,null,null,null,null,null,"","",""]
[null,null,null,null,null,null,null,null,null,null,null,"","",""]
[null,null,null,null,null,null,null,null,null,null,null,"","",""]
[null,null,null,null,null,null,null,null,null,null,null,"","",""]
[null,null,null,null,null,null,null,null,null,null,null,"","",""]
[null,null,null,null,null,null,null,null,null,null,null,"","",""]
[null,null,null,null,null,null,null,null,null,null,null,"","",""]
[null,null,null,null,null,null,null,null,null,null,null,"","",""]
[null,null,null,null,null,null,null,null,null,null,null,"","",""]
[null,null,null,null,null,null,null,null,null,null,null,"","",""]
[null,null,null,null,null,null,null,null,null,null,null,"","",""]
[null,null,null,null,null,null,null,null,null,null,null,"","",""]
[null,null,null,null,null,null,null,null,null,null,null,"","",""]
[null,null,null,null,null,null,null,null,null,null,null,"","",""]
[null,null,null,null,null,null,null,null,null,null,null,"","",""]
[null,null,null,null,null,null,null,null,null,null,null,"","",""]
[null,null,null,null,null,null,null,null,null,null,null,"","",""]
[null,null,null,null,null,null,null,null,null,null,null,"","",""]
[null,null,null,null,null,null,null,null,null,null,null,{"$f":"IF(B134=\"\",\"\",AVERAGE(C134:K134))","v":""},{"$f":"IF(B134=\"\",\"\",MIN(C134:K134))","v":""},{"$f":"IF(B134=\"\",\"\",MAX(C134:K134))","v":""}]
[null,null,null,null,null,null,null,null,null,null,null,"","",""]
[null,null,null,null,null,null,null,null,null,null,null,"","",""]
[null,null,null,null,null,null,null,null,null,null,null,"","",""]
[null,null,null,null,null,null,null,null,null,null,null,"","",""]
[null,null,null,null,null,null,null,null,null,null,null,"","",""]
[null,null,null,null,null,null,null,null,null,null,null,"","",""]
[null,null,null,null,null,null,null,null,null,null,null,"","",""]
[null,null,null,null,null,null,null,null,null,null,null,"","",""]
[null,null,null,null,null,null,null,null,null,null,null,"","",""]
[null,null,null,null,null,null,null,null,null,null,null,"","",""]
[null,null,null,null,null,null,null,null,null,null,null,"","",""]
[null,null,null,null,null,null,null,null,null,null,null,"","",""]
[null,null,null,null,null,null,null,null,null,null,null,"","",""]
[null,null,null,null,null,null,null,null,null,null,null,"","",""]
[null,null,null,null,null,null,null,null,null,null,null,"","",""]
[null,null,null,null,null,null,null,null,null,null,null,"","",""]
[null,null,null,null,null,null,null,null,null,null,null,"","",""]
[null,null,null,null,null,null,null,null,null,null,null,"","",""]
[null,null,null,null,null,null,null,null,null,null,null,"","",""]
[null,null,null,null,null,null,null,null,null,null,null,"","",""]
[null,null,null,null,null,null,null,null,null,null,null,"","",""]
[null,null,null,null,null,null,null,null,null,null,null,"","",""]
[null,null,null,null,null,null,null,null,null,null,null,"","",""]
[null,null,null,null,null,null,null,null,null,null,null,"","",""]
[null,null,null,null,null,null,null,null,null,null,null,"","",""]
[null,null,null,null,null,null,null,null,null,null,null,"","",""]
[null,null,null,null,null,null,null,null,null,null,null,"","",""]
[null,null,null,null,null,null,null,null,null,null,null,"","",""]
[null,null,null,null,null,null,null,null,null,null,null,"","",""]
[null,null,null,null,null,null,null,null,null,null,null,"","",""]
[null,null,null,null,null,null,null,null,null,null,null,"","",""]
[null,null,null,null,null,null,null,null,null,null,null,"","",""]
[null,null,null,null,null,null,null,null,null,null,null,"","",""]
[null,null,null,null,null,null,null,null,null,null,null,"","",""]
[null,null,null,null,null,null,null,null,null,null,null,"","",""]
[null,null,null,null,null,null,null,null,null,null,null,"","",""]
[null,null,null,null,null,null,null,null,null,null,null,"","",""]
[null,null,null,null,null,null,null,null,null,null,null,"","",""]
[null,null,null,null,null,null,null,null,null,null,null,"","",""]
[null,null,null,null,null,null,null,null,null,null,null,"","",""]
[null,null,null,null,null,null,null,null,null,null,null,"","",""]
[null,null,null,null,null,null,null,null,null,null,null,"","",""]
[null,null,null,null,null,null,null,null,null,null,null,"","",""]
[null,null,null,null,null,null,null,null,null,null,null,"","",""]
[null,null,null,null,null,null,null,null,null,null,null,"","",""]
[null,null,null,null,null,null,null,null,null,null,null,"","",""]
[null,null,null,null,null,null,null,null,null,null,null,"","",""]
[null,null,null,null,null,null,null,null,null,null,null,"","",""]
[null,null,null,null,null,null,null,null,null,null,null,"","",""]
[null,null,null,null,null,null,null,null,null,null,null,"","",""]
[null,null,null,null,null,null,null,null,null,null,null,"","",""]
[null,null,null,null,null,null,null,null,null,null,null,"","",""]
[null,null,null,null,null,null,null,null,null,null,null,"","",""]
[null,null,null,null,null,null,null,null,null,null,null,"","",""]
[null,null,null,null,null,null,null,null,null,null,null,"","",""]
[null,null,null,null,null,null,null,null,null,null,null,"","",""]
[null,null,null,null,null,null,null,null,null,null,null,"","",""]
[null,null,null,null,null,null,null,null,null,null,null,"","",""]
[null,null,null,null,null,null,null,null,null,null,null,"","",""]
[null,null,null,null,null,null,null,null,null,null,null,"","",""]
[null,null,null,null,null,null,null,null,null,null,null,"","",""]
[null,null,null,null,null,null,null,null,null,null,null,"","",""]
[null,null,null,null,null,null,null,null,null,null,null,"","",""]
[null,null,null,null,null,null,null,null,null,null,null,{"$f":"IF(B198=\"\",\"\",AVERAGE(C198:K198))","v":""},{"$f":"IF(B198=\"\",\"\",MIN(C198:K198))","v":""},{"$f":"IF(B198=\"\",\"\",MAX(C198:K198))","v":""}]
[null,null,null,null,null,null,null,null,null,null,null,"","",""]
[null,null,null,null,null,null,null,null,null,null,null,"","",""]
[null,null,null,null,null,null,null,null,null,null,null,"","",""]
[null,null,null,null,null,null,null,null,null,null,null,"","",""]
[null,null,null,null,null,null,null,null,null,null,null,"","",""]
[null,null,null,null,null,null,null,null,null,null,null,"","",""]
[null,null,null,null,null,null,null,null,null,null,null,"","",""]
[null,null,null,null,null,null,null,null,null,null,null,"","",""]
[null,null,null,null,null,null,null,null,null,null,null,"","",""]
[null,null,null,null,null,null,null,null,null,null,null,"","",""]
[null,null,null,null,null,null,null,null,null,null,null,"","",""]
[null,null,null,null,null,null,null,null,null,null,null,"","",""]
[null,null,null,null,null,null,null,null,null,null,null,"","",""]
[null,null,null,null,null,null,null,null,null,null,null,"","",""]
[null,null,null,null,null,null,null,null,null,null,null,"","",""]
[null,null,null,null,null,null,null,null,null,null,null,"","",""]
[null,null,null,null,null,null,null,null,null,null,null,"","",""]
[null,null,null,null,null,null,null,null,null,null,null,"","",""]
[null,null,null,null,null,null,null,null,null,null,null,"","",""]
[null,null,null,null,null,null,null,null,null,null,null,"","",""]
[null,null,null,null,null,null,null,null,null,null,null,"","",""]
[null,null,null,null,null,null,null,null,null,null,null,"","",""]
[null,null,null,null,null,null,null,null,null,null,null,"","",""]
[null,null,null,null,null,null,null,null,null,null,null,"","",""]
[null,null,null,null,null,null,null,null,null,null,null,"","",""]
[null,null,null,null,null,null,null,null,null,null,null,"","",""]
[null,null,null,null,null,null,null,null,null,null,null,"","",""]
[null,null,null,null,null,null,null,null,null,null,null,"","",""]
[null,null,null,null,null,null,null,null,null,null,null,"","",""]
[null,null,null,null,null,null,null,null,null,null,null,"","",""]
[null,null,null,null,null,null,null,null,null,null,null,"","",""]
[null,null,null,null,null,null,null,null,null,null,null,"","",""]
[null,null,null,null,null,null,null,null,null,null,null,"","",""]
[null,null,null,null,null,null,null,null,null,null,null,"","",""]
[null,null,null,null,null,null,null,null,null,null,null,"","",""]
[null,null,null,null,null,null,null,null,null,null,null,"","",""]
[null,null,null,null,null,null,null,null,null,null,null,"","",""]
[null,null,null,null,null,null,null,null,null,null,null,"","",""]
[null,null,null,null,null,null,null,null,null,null,null,"","",""]
[null,null,null,null,null,null,null,null,null,null,null,"","",""]
[null,null,null,null,null,null,null,null,null,null,null,"","",""]
[null,null,null,null,null,null,null,null,null,null,null,"","",""]
[null,null,null,null,null,null,null,null,null,null,null,"","",""]
[null,null,null,null,null,null,null,null,null,null,null,"","",""]
[null,null,null,null,null,null,null,null,null,null,null,"","",""]
[null,null,null,null,null,null,null,null,null,null,null,"","",""]
[null,null,null,null,null,null,null,null,null,null,null,"","",""]
[null,null,null,null,null,null,null,null,null,null,null,"","",""]
[null,null,null,null,null,null,null,null,null,null,null,"","",""]
[null,null,null,null,null,null,null,null,null,null,null,"","",""]
[null,null,null,null,null,null,null,null,null,null,null,"","",""]
[null,null,null,null,null,null,null,null,null,null,null,"","",""]
[null,null,null,null,null,null,null,null,null,null,null,"","",""]
[null,null,null,null,null,null,null,null,null,null,null,"","",""]
[null,null,null,null,null,null,null,null,null,null,null,"","",""]
[null,null,null,null,null,null,null,null,null,null,null,"","",""]
[null,null,null,null,null,null,null,null,null,null,null,"","",""]
[null,null,null,null,null,null,null,null,null,null,null,"","",""]
[null,null,null,null,null,null,null,null,null,null,null,"","",""]
[null,null,null,null,null,null,null,null,null,null,null,"","",""]
[null,null,null,null,null,null,null,null,null,null,null,"","",""]
[null,null,null,null,null,null,null,null,null,null,null,"","",""]
[null,null,null,null,null,null,null,null,null,null,null,"","",""]
[null,null,null,null,null,null,null,null,null,null,null,{"$f":"IF(B262=\"\",\"\",AVERAGE(C262:K262))","v":""},{"$f":"IF(B262=\"\",\"\",MIN(C262:K262))","v":""},{"$f":"IF(B262=\"\",\"\",MAX(C262:K262))","v":""}]
[null,null,null,null,null,null,null,null,null,null,null,"","",""]
[null,null,null,null,null,null,null,null,null,null,null,"","",""]
[null,null,null,null,null,null,null,null,null,null,null,"","",""]
[null,null,null,null,null,null,null,null,null,null,null,"","",""]
[null,null,null,null,null,null,null,null,null,null,null,"","",""]
[null,null,null,null,null,null,null,null,null,null,null,"","",""]
[null,null,null,null,null,null,null,null,null,null,null,"","",""]
[null,null,null,null,null,null,null,null,null,null,null,"","",""]
[null,null,null,null,null,null,null,null,null,null,null,"","",""]
[null,null,null,null,null,null,null,null,null,null,null,"","",""]
[null,null,null,null,null,null,null,null,null,null,null,"","",""]
[null,null,null,null,null,null,null,null,null,null,null,"","",""]
[null,null,null,null,null,null,null,null,null,null,null,"","",""]
[null,null,null,null,null,null,null,null,null,null,null,"","",""]
[null,null,null,null,null,null,null,null,null,null,null,"","",""]
[null,null,null,null,null,null,null,null,null,null,null,"","",""]
[null,null,null,null,null,null,null,null,null,null,null,"","",""]
[null,null,null,null,null,null,null,null,null,null,null,"","",""]
[null,null,null,null,null,null,null,null,null,null,null,"","",""]
[null,null,null,null,null,null,null,null,null,null,null,"","",""]
[null,null,null,null,null,null,null,null,null,null,null,"","",""]
[null,null,null,null,null,null,null,null,null,null,null,"","",""]
[null,null,null,null,null,null,null,null,null,null,null,"","",""]
[null,null,null,null,null,null,null,null,null,null,null,"","",""]
[null,null,null,null,null,null,null,null,null,null,null,"","",""]
[null,null,null,null,null,null,null,null,null,null,null,"","",""]
[null,null,null,null,null,null,null,null,null,null,null,"","",""]
[null,null,null,null,null,null,null,null,null,null,null,"","",""]
[null,null,null,null,null,null,null,null,null,null,null,"","",""]
[null,null,null,null,null,null,null,null,null,null,null,"","",""]
[null,null,null,null,null,null,null,null,null,null,null,"","",""]
[null,null,null,null,null,null,null,null,null,null,null,"","",""]
[null,null,null,null,null,null,null,null,null,null,null,"","",""]
[null,null,null,null,null,null,null,null,null,null,null,"","",""]
[null,null,null,null,null,null,null,null,null,null,null,"","",""]
[null,null,null,null,null,null,null,null,null,null,null,"","",""]
[null,null,null,null,null,null,null,null,null,null,null,"","",""]
[null,null,null,null,null,null,null,null,null,null,null,"","",""]
[null,null,null,null,null,null,null,null,null,null,null,"","",""]
[null,null,null,null,null,null,null,null,null,null,null,"","",""]
[null,null,null,null,null,null,null,null,null,null,null,"","",""]
[null,null,null,null,null,null,null,null,null,null,null,"","",""]
[null,null,null,null,null,null,null,null,null,null,null,"","",""]
[null,null,null,null,null,null,null,null,null,null,null,"","",""]
[null,null,null,null,null,null,null,null,null,null,null,"","",""]
[null,null,null,null,null,null,null,null,null,null,null,"","",""]
[null,null,null,null,null,null,null,null,null,null,null,"","",""]
[null,null,null,null,null,null,null,null,null,null,null,"","",""]
[null,null,null,null,null,null,null,null,null,null,null,"","",""]
[null,null,null,null,null,null,null,null,null,null,null,"","",""]
[null,null,null,null,null,null,null,null,null,null,null,"","",""]
[null,null,null,null,null,null,null,null,null,null,null,"","",""]
[null,null,null,null,null,null,null,null,null,null,null,"","",""]
[null,null,null,null,null,null,null,null,null,null,null,"","",""]
[null,null,null,null,null,null,null,null,null,null,null,"","",""]
[null,null,null,null,null,null,null,null,null,null,null,"","",""]
[null,null,null,null,null,null,null,null,null,null,null,"","",""]
[null,null,null,null,null,null,null,null,null,null,null,"","",""]
[null,null,null,null,null,null,null,null,null,null,null,"","",""]
[null,null,null,null,null,null,null,null,null,null,null,"","",""]
[null,null,null,null,null,null,null,null,null,null,null,"","",""]
[null,null,null,null,null,null,null,null,null,null,null,"","",""]
[null,null,null,null,null,null,null,null,null,null,null,"","",""]
[null,null,null,null,null,null,null,null,null,null,null,{"$f":"IF(B326=\"\",\"\",AVERAGE(C326:K326))","v":""},{"$f":"IF(B326=\"\",\"\",MIN(C326:K326))","v":""},{"$f":"IF(B326=\"\",\"\",MAX(C326:K326))","v":""}]
[null,null,null,null,null,null,null,null,null,null,null,"","",""]
[null,null,null,null,null,null,null,null,null,null,null,"","",""]
[null,null,null,null,null,null,null,null,null,null,null,"","",""]
[null,null,null,null,null,null,null,null,null,null,null,"","",""]
[null,null,null,null,null,null,null,null,null,null,null,"","",""]
[null,null,null,null,null,null,null,null,null,null,null,"","",""]
[null,null,null,null,null,null,null,null,null,null,null,"","",""]
[null,null,null,null,null,null,null,null,null,null,null,"","",""]
[null,null,null,null,null,null,null,null,null,null,null,"","",""]
[null,null,null,null,null,null,null,null,null,null,null,"","",""]
[null,null,null,null,null,null,null,null,null,null,null,"","",""]
[null,null,null,null,null,null,null,null,null,null,null,"","",""]
[null,null,null,null,null,null,null,null,null,null,null,"","",""]
[null,null,null,null,null,null,null,null,null,null,null,"","",""]
[null,null,null,null,null,null,null,null,null,null,null,"","",""]
[null,null,null,null,null,null,null,null,null,null,null,"","",""]
[null,null,null,null,null,null,null,null,null,null,null,"","",""]
[null,null,null,null,null,null,null,null,null,null,null,"","",""]
[null,null,null,null,null,null,null,null,null,null,null,"","",""]
[null,null,null,null,null,null,null,null,null,null,null,"","",""]
[null,null,null,null,null,null,null,null,null,null,null,"","",""]
[null,null,null,null,null,null,null,null,null,null,null,"","",""]
[null,null,null,null,null,null,null,null,null,null,null,"","",""]
[null,null,null,null,null,null,null,null,null,null,null,"","",""]
[null,null,null,null,null,null,null,null,null,null,null,"","",""]
[null,null,null,null,null,null,null,null,null,null,null,"","",""]
[null,null,null,null,null,null,null,null,null,null,null,"","",""]
[null,null,null,null,null,null,null,null,null,null,null,"","",""]
[null,null,null,null,null,null,null,null,null,null,null,"","",""]
[null,null,null,null,null,null,null,null,null,null,null,"","",""]
[null,null,null,null,null,null,null,null,null,null,null,"","",""]
[null,null,null,null,null,null,null,null,null,null,null,"","",""]
[null,null,null,null,null,null,null,null,null,null,null,"","",""]
[null,null,null,null,null,null,null,null,null,null,null,"","",""]
[null,null,null,null,null,null,null,null,null,null,null,"","",""]
[null,null,null,null,null,null,null,null,null,null,null,"","",""]
[null,null,null,null,null,null,null,null,null,null,null,"","",""]
[null,null,null,null,null,null,null,null,null,null,null,"","",""]
[null,null,null,null,null,null,null,null,null,null,null,"","",""]
[null,null,null,null,null,null,null,null,null,null,null,"","",""]
[null,null,null,null,null,null,null,null,null,null,null,"","",""]
[null,null,null,null,null,null,null,null,null,null,null,"","",""]
[null,null,null,null,null,null,null,null,null,null,null,"","",""]
[null,null,null,null,null,null,null,null,null,null,null,"","",""]
[null,null,null,null,null,null,null,null,null,null,null,"","",""]
[null,null,null,null,null,null,null,null,null,null,null,"","",""]
[null,null,null,null,null,null,null,null,null,null,null,"","",""]
[null,null,null,null,null,null,null,null,null,null,null,"","",""]
[null,null,null,null,null,null,null,null,null,null,null,"","",""]
[null,null,null,null,null,null,null,null,null,null,null,"","",""]
[null,null,null,null,null,null,null,null,null,null,null,"","",""]
[null,null,null,null,null,null,null,null,null,null,null,"","",""]
[null,null,null,null,null,null,null,null,null,null,null,"","",""]
[null,null,null,null,null,null,null,null,null,null,null,"","",""]
[null,null,null,null,null,null,null,null,null,null,null,"","",""]
[null,null,null,null,null,null,null,null,null,null,null,"","",""]
[null,null,null,null,null,null,null,null,null,null,null,"","",""]
[null,null,null,null,null,null,null,null,null,null,null,"","",""]
[null,null,null,null,null,null,null,null,null,null,null,"","",""]
[null,null,null,null,null,null,null,null,null,null,null,"","",""]
[null,null,null,null,null,null,null,null,null,null,null,"","",""]
[null,null,null,null,null,null,null,null,null,null,null,"","",""]
[null,null,null,null,null,null,null,null,null,null,null,"","",""]
[null,null,null,null,null,null,null,null,null,null,null,{"$f":"IF(B390=\"\",\"\",AVERAGE(C390:K390))","v":""},{"$f":"IF(B390=\"\",\"\",MIN(C390:K390))","v":""},{"$f":"IF(B390=\"\",\"\",MAX(C390:K390))","v":""}]
[null,null,null,null,null,null,null,null,null,null,null,"","",""]
[null,null,null,null,null,null,null,null,null,null,null,"","",""]
[null,null,null,null,null,null,null,null,null,null,null,"","",""]
[null,null,null,null,null,null,null,null,null,null,null,"","",""]
[null,null,null,null,null,null,null,null,null,null,null,"","",""]
[null,null,null,null,null,null,null,null,null,null,null,"","",""]
[null,null,null,null,null,null,null,null,null,null,null,"","",""]
[null,null,null,null,null,null,null,null,null,null,null,"","",""]
[null,null,null,null,null,null,null,null,null,null,null,"","",""]
[null,null,null,null,null,null,null,null,null,null,null,"","",""]
[null,null,null,null,null,null,null,null,null,null,null,"","",""]
[null,null,null,null,null,null,null,null,null,null,null,"","",""]
[null,null,null,null,null,null,null,null,null,null,null,"","",""]
[null,null,null,null,null,null,null,null,null,null,null,"","",""]
[null,null,null,null,null,null,null,null,null,null,null,"","",""]
[null,null,null,null,null,null,null,null,null,null,null,"","",""]
[null,null,null,null,null,null,null,null,null,null,null,"","",""]
[null,null,null,null,null,null,null,null,null,null,null,"","",""]
[null,null,null,null,null,null,null,null,null,null,null,"","",""]
[null,null,null,null,null,null,null,null,null,null,null,"","",""]
[null,null,null,null,null,null,null,null,null,null,null,"","",""]
[null,null,null,null,null,null,null,null,null,null,null,"","",""]
[null,null,null,null,null,null,null,null,null,null,null,"","",""]
[null,null,null,null,null,null,null,null,null,null,null,"","",""]
[null,null,null,null,null,null,null,null,null,null,null,"","",""]
[null,null,null,null,null,null,null,null,null,null,null,"","",""]
[null,null,null,null,null,null,null,null,null,null,null,"","",""]
[null,null,null,null,null,null,null,null,null,null,null,"","",""]
[null,null,null,null,null,null,null,null,null,null,null,"","",""]
[null,null,null,null,null,null,null,null,null,null,null,"","",""]
[null,null,null,null,null,null,null,null,null,null,null,"","",""]
[null,null,null,null,null,null,null,null,null,null,null,"","",""]
[null,null,null,null,null,null,null,null,null,null,null,"","",""]
[null,null,null,null,null,null,null,null,null,null,null,"","",""]
[null,null,null,null,null,null,null,null,null,null,null,"","",""]
[null,null,null,null,null,null,null,null,null,null,null,"","",""]
[null,null,null,null,null,null,null,null,null,null,null,"","",""]
[null,null,null,null,null,null,null,null,null,null,null,"","",""]
[null,null,null,null,null,null,null,null,null,null,null,"","",""]
[null,null,null,null,null,null,null,null,null,null,null,"","",""]
[null,null,null,null,null,null,null,null,null,null,null,"","",""]
[null,null,null,null,null,null,null,null,null,null,null,"","",""]
[null,null,null,null,null,null,null,null,null,null,null,"","",""]
[null,null,null,null,null,null,null,null,null,null,null,"","",""]
[null,null,null,null,null,null,null,null,null,null,null,"","",""]
[null,null,null,null,null,null,null,null,null,null,null,"","",""]
[null,null,null,null,null,null,null,null,null,null,null,"","",""]
[null,null,null,null,null,null,null,null,null,null,null,"","",""]
[null,null,null,null,null,null,null,null,null,null,null,"","",""]
[null,null,null,null,null,null,null,null,null,null,null,"","",""]
[null,null,null,null,null,null,null,null,null,null,null,"","",""]
[null,null,null,null,null,null,null,null,null,null,null,"","",""]
[null,null,null,null,null,null,null,null,null,null,null,"","",""]
[null,null,null,null,null,null,null,null,null,null,null,"","",""]
[null,null,null,null,null,null,null,null,null,null,null,"","",""]
[null,null,null,null,null,null,null,null,null,null,null,"","",""]
[null,null,null,null,null,null,null,null,null,null,null,"","",""]
[null,null,null,null,null,null,null,null,null,null,null,"","",""]
[null,null,null,null,null,null,null,null,null,null,null,"","",""]
[null,null,null,null,null,null,null,null,null,null,null,"","",""]
[null,null,null,null,null,null,null,null,null,null,null,"","",""]
[null,null,null,null,null,null,null,null,null,null,null,"","",""]
[null,null,null,null,null,null,null,null,null,null,null,"","",""]
[null,null,null,null,null,null,null,null,null,null,null,{"$f":"IF(B454=\"\",\"\",AVERAGE(C454:K454))","v":""},{"$f":"IF(B454=\"\",\"\",MIN(C454:K454))","v":""},{"$f":"IF(B454=\"\",\"\",MAX(C454:K454))","v":""}]
[null,null,null,null,null,null,null,null,null,null,null,"","",""]
[null,null,null,null,null,null,null,null,null,null,null,"","",""]
[null,null,null,null,null,null,null,null,null,null,null,"","",""]
[null,null,null,null,null,null,null,null,null,null,null,"","",""]
[null,null,null,null,null,null,null,null,null,null,null,"","",""]
[null,null,null,null,null,null,null,null,null,null,null,"","",""]
[null,null,null,null,null,null,null,null,null,null,null,"","",""]
[null,null,null,null,null,null,null,null,null,null,null,"","",""]
[null,null,null,null,null,null,null,null,null,null,null,"","",""]
[null,null,null,null,null,null,null,null,null,null,null,"","",""]
[null,null,null,null,null,null,null,null,null,null,null,"","",""]
[null,null,null,null,null,null,null,null,null,null,null,"","",""]
[null,null,null,null,null,null,null,null,null,null,null,"","",""]
[null,null,null,null,null,null,null,null,null,null,null,"","",""]
[null,null,null,null,null,null,null,null,null,null,null,"","",""]
[null,null,null,null,null,null,null,null,null,null,null,"","",""]
[null,null,null,null,null,null,null,null,null,null,null,"","",""]
[null,null,null,null,null,null,null,null,null,null,null,"","",""]
[null,null,null,null,null,null,null,null,null,null,null,"","",""]
[null,null,null,null,null,null,null,null,null,null,null,"","",""]
[null,null,null,null,null,null,null,null,null,null,null,"","",""]
[null,null,null,null,null,null,null,null,null,null,null,"","",""]
[null,null,null,null,null,null,null,null,null,null,null,"","",""]
[null,null,null,null,null,null,null,null,null,null,null,"","",""]
[null,null,null,null,null,null,null,null,null,null,null,"","",""]
[null,null,null,null,null,null,null,null,null,null,null,"","",""]
[null,null,null,null,null,null,null,null,null,null,null,"","",""]
[null,null,null,null,null,null,null,null,null,null,null,"","",""]
[null,null,null,null,null,null,null,null,null,null,null,"","",""]
[null,null,null,null,null,null,null,null,null,null,null,"","",""]
[null,null,null,null,null,null,null,null,null,null,null,"","",""]
[null,null,null,null,null,null,null,null,null,null,null,"","",""]
[null,null,null,null,null,null,null,null,null,null,null,"","",""]
[null,null,null,null,null,null,null,null,null,null,null,"","",""]
[null,null,null,null,null,null,null,null,null,null,null,"","",""]
[null,null,null,null,null,null,null,null,null,null,null,"","",""]
[null,null,null,null,null,null,null,null,null,null,null,"","",""]
[null,null,null,null,null,null,null,null,null,null,null,"","",""]
[null,null,null,null,null,null,null,null,null,null,null,"","",""]
[null,null,null,null,null,null,null,null,null,null,null,"","",""]
[null,null,null,null,null,null,null,null,null,null,null,"","",""]
[null,null,null,null,null,null,null,null,null,null,null,"","",""]
[null,null,null,null,null,null,null,null,null,null,null,"","",""]
[null,null,null,null,null,null,null,null,null,null,null,"","",""]
[null,null,null,null,null,null,null,null,null,null,null,"","",""]
[null,null,null,null,null,null,null,null,null,null,null,"","",""]
[null,null,null,null,null,null,null,null,null,null,null,"","",""]
[null,null,null,null,null,null,null,null,null,null,null,"","",""]
[null,null,null,null,null,null,null,null,null,null,null,"","",""]
[null,null,null,null,null,null,null,null,null,null,null,"","",""]
[null,null,null,null,null,null,null,null,null,null,null,"","",""]
[null,null,null,null,null,null,null,null,null,null,null,"","",""]
[null,null,null,null,null,null,null,null,null,null,null,"","",""]
[null,null,null,null,null,null,null,null,null,null,null,"","",""]
[null,null,null,null,null,null,null,null,null,null,null,"","",""]
[null,null,null,null,null,null,null,null,null,null,null,"","",""]
[null,null,null,null,null,null,null,null,null,null,null,"","",""]
[null,null,null,null,null,null,null,null,null,null,null,"","",""]
[null,null,null,null,null,null,null,null,null,null,null,"","",""]
[null,null,null,null,null,null,null,null,null,null,null,"","",""]
[null,null,null,null,null,null,null,null,null,null,null,"","",""]
[null,null,null,null,null,null,null,null,null,null,null,"","",""]
[null,null,null,null,null,null,null,null,null,null,null,"","",""]
[null,null,null,null,null,null,null,null,null,null,null,{"$f":"IF(B518=\"\",\"\",AVERAGE(C518:K518))","v":""},{"$f":"IF(B518=\"\",\"\",MIN(C518:K518))","v":""},{"$f":"IF(B518=\"\",\"\",MAX(C518:K518))","v":""}]
[null,null,null,null,null,null,null,null,null,null,null,"","",""]
[null,null,null,null,null,null,null,null,null,null,null,"","",""]
[null,null,null,null,null,null,null,null,null,null,null,"","",""]
[null,null,null,null,null,null,null,null,null,null,null,"","",""]
[null,null,null,null,null,null,null,null,null,null,null,"","",""]
[null,null,null,null,null,null,null,null,null,null,null,"","",""]
[null,null,null,null,null,null,null,null,null,null,null,"","",""]
[null,null,null,null,null,null,null,null,null,null,null,"","",""]
[null,null,null,null,null,null,null,null,null,null,null,"","",""]
[null,null,null,null,null,null,null,null,null,null,null,"","",""]
[null,null,null,null,null,null,null,null,null,null,null,"","",""]
[null,null,null,null,null,null,null,null,null,null,null,"","",""]
[null,null,null,null,null,null,null,null,null,null,null,"","",""]
[null,null,null,null,null,null,null,null,null,null,null,"","",""]
[null,null,null,null,null,null,null,null,null,null,null,"","",""]
[null,null,null,null,null,null,null,null,null,null,null,"","",""]
[null,null,null,null,null,null,null,null,null,null,null,"","",""]
[null,null,null,null,null,null,null,null,null,null,null,"","",""]
[null,null,null,null,null,null,null,null,null,null,null,"","",""]
[null,null,null,null,null,null,null,null,null,null,null,"","",""]
[null,null,null,null,null,null,null,null,null,null,null,"","",""]
[null,null,null,null,null,null,null,null,null,null,null,"","",""]
[null,null,null,null,null,null,null,null,null,null,null,"","",""]
[null,null,null,null,null,null,null,null,null,null,null,"","",""]
[null,null,null,null,null,null,null,null,null,null,null,"","",""]
[null,null,null,null,null,null,null,null,null,null,null,"","",""]
[null,null,null,null,null,null,null,null,null,null,null,"","",""]
[null,null,null,null,null,null,null,null,null,null,null,"","",""]
[null,null,null,null,null,null,null,null,null,null,null,"","",""]
[null,null,null,null,null,null,null,null,null,null,null,"","",""]
[null,null,null,null,null,null,null,null,null,null,null,"","",""]
[null,null,null,null,null,null,null,null,null,null,null,"","",""]
[null,null,null,null,null,null,null,null,null,null,null,"","",""]
[null,null,null,null,null,null,null,null,null,null,null,"","",""]
[null,null,null,null,null,null,null,null,null,null,null,"","",""]
[null,null,null,null,null,null,null,null,null,null,null,"","",""]
[null,null,null,null,null,null,null,null,null,null,null,"","",""]
[null,null,null,null,null,null,null,null,null,null,null,"","",""]
[null,null,null,null,null,null,null,null,null,null,null,"","",""]
[null,null,null,null,null,null,null,null,null,null,null,"","",""]
[null,null,null,null,null,null,null,null,null,null,null,"","",""]
[null,null,null,null,null,null,null,null,null,null,null,"","",""]
[null,null,null,null,null,null,null,null,null,null,null,"","",""]
[null,null,null,null,null,null,null,null,null,null,null,"","",""]
[null,null,null,null,null,null,null,null,null,null,null,"","",""]
[null,null,null,null,null,null,null,null,null,null,null,"","",""]
[null,null,null,null,null,null,null,null,null,null,null,"","",""]
[null,null,null,null,null,null,null,null,null,null,null,"","",""]
[null,null,null,null,null,null,null,null,null,null,null,"","",""]
[null,null,null,null,null,null,null,null,null,null,null,"","",""]
[null,null,null,null,null,null,null,null,null,null,null,"","",""]
[null,null,null,null,null,null,null,null,null,null,null,"","",""]
[null,null,null,null,null,null,null,null,null,null,null,"","",""]
[null,null,null,null,null,null,null,null,null,null,null,"","",""]
[null,null,null,null,null,null,null,null,null,null,null,"","",""]
[null,null,null,null,null,null,null,null,null,null,null,"","",""]
[null,null,null,null,null,null,null,null,null,null,null,"","",""]
[null,null,null,null,null,null,null,null,null,null,null,"","",""]
[null,null,null,null,null,null,null,null,null,null,null,"","",""]
[null,null,null,null,null,null,null,null,null,null,null,"","",""]
[null,null,null,null,null,null,null,null,null,null,null,"","",""]
[null,null,null,null,null,null,null,null,null,null,null,"","",""]
[null,null,null,null,null,null,null,null,null,null,null,"","",""]
[null,null,null,null,null,null,null,null,null,null,null,{"$f":"IF(B582=\"\",\"\",AVERAGE(C582:K582))","v":""},{"$f":"IF(B582=\"\",\"\",MIN(C582:K582))","v":""},{"$f":"IF(B582=\"\",\"\",MAX(C582:K582))","v":""}]
[null,null,null,null,null,null,null,null,null,null,null,"","",""]
[null,null,null,null,null,null,null,null,null,null,null,"","",""]
[null,null,null,null,null,null,null,null,null,null,null,"","",""]
[null,null,null,null,null,null,null,null,null,null,null,"","",""]
[null,null,null,null,null,null,null,null,null,null,null,"","",""]
[null,null,null,null,null,null,null,null,null,null,null,"","",""]
[null,null,null,null,null,null,null,null,null,null,null,"","",""]
[null,null,null,null,null,null,null,null,null,null,null,"","",""]
[null,null,null,null,null,null,null,null,null,null,null,"","",""]
[null,null,null,null,null,null,null,null,null,null,null,"","",""]
[null,null,null,null,null,null,null,null,null,null,null,"","",""]
[null,null,null,null,null,null,null,null,null,null,null,"","",""]
[null,null,null,null,null,null,null,null,null,null,null,"","",""]
[null,null,null,null,null,null,null,null,null,null,null,"","",""]
[null,null,null,null,null,null,null,null,null,null,null,"","",""]
[null,null,null,null,null,null,null,null,null,null,null,"","",""]
[null,null,null,null,null,null,null,null,null,null,null,"","",""]
[null,null,null,null,null,null,null,null,null,null,null,"","",""]
[null,null,null,null,null,null,null,null,null,null,null,"","",""]
[null,null,null,null,null,null,null,null,null,null,null,"","",""]
[null,null,null,null,null,null,null,null,null,null,null,"","",""]
[null,null,null,null,null,null,null,null,null,null,null,"","",""]
[null,null,null,null,null,null,null,null,null,null,null,"","",""]
[null,null,null,null,null,null,null,null,null,null,null,"","",""]
[null,null,null,null,null,null,null,null,null,null,null,"","",""]
[null,null,null,null,null,null,null,null,null,null,null,"","",""]
[null,null,null,null,null,null,null,null,null,null,null,"","",""]
[null,null,null,null,null,null,null,null,null,null,null,"","",""]
[null,null,null,null,null,null,null,null,null,null,null,"","",""]
[null,null,null,null,null,null,null,null,null,null,null,"","",""]
[null,null,null,null,null,null,null,null,null,null,null,"","",""]
[null,null,null,null,null,null,null,null,null,null,null,"","",""]
[null,null,null,null,null,null,null,null,null,null,null,"","",""]
[null,null,null,null,null,null,null,null,null,null,null,"","",""]
[null,null,null,null,null,null,null,null,null,null,null,"","",""]
[null,null,null,null,null,null,null,null,null,null,null,"","",""]
[null,null,null,null,null,null,null,null,null,null,null,"","",""]
[null,null,null,null,null,null,null,null,null,null,null,"","",""]
[null,null,null,null,null,null,null,null,null,null,null,"","",""]
[null,null,null,null,null,null,null,null,null,null,null,"","",""]
[null,null,null,null,null,null,null,null,null,null,null,"","",""]
[null,null,null,null,null,null,null,null,null,null,null,"","",""]
[null,null,null,null,null,null,null,null,null,null,null,"","",""]
[null,null,null,null,null,null,null,null,null,null,null,"","",""]
[null,null,null,null,null,null,null,null,null,null,null,"","",""]
[null,null,null,null,null,null,null,null,null,null,null,"","",""]
[null,null,null,null,null,null,null,null,null,null,null,"","",""]
[null,null,null,null,null,null,null,null,null,null,null,"","",""]
[null,null,null,null,null,null,null,null,null,null,null,"","",""]
[null,null,null,null,null,null,null,null,null,null,null,"","",""]
[null,null,null,null,null,null,null,null,null,null,null,"","",""]
[null,null,null,null,null,null,null,null,null,null,null,"","",""]
[null,null,null,null,null,null,null,null,null,null,null,"","",""]
[null,null,null,null,null,null,null,null,null,null,null,"","",""]
[null,null,null,null,null,null,null,null,null,null,null,"","",""]
[null,null,null,null,null,null,null,null,null,null,null,"","",""]
[null,null,null,null,null,null,null,null,null,null,null,"","",""]
[null,null,null,null,null,null,null,null,null,null,null,"","",""]
[null,null,null,null,null,null,null,null,null,null,null,"","",""]
[null,null,null,null,null,null,null,null,null,null,null,"","",""]
[null,null,null,null,null,null,null,null,null,null,null,"","",""]
[null,null,null,null,null,null,null,null,null,null,null,"","",""]
[null,null,null,null,null,null,null,null,null,null,null,"","",""]
[null,null,null,null,null,null,null,null,null,null,null,{"$f":"IF(B646=\"\",\"\",AVERAGE(C646:K646))","v":""},{"$f":"IF(B646=\"\",\"\",MIN(C646:K646))","v":""},{"$f":"IF(B646=\"\",\"\",MAX(C646:K646))","v":""}]
[null,null,null,null,null,null,null,null,null,null,null,"","",""]
[null,null,null,null,null,null,null,null,null,null,null,"","",""]
[null,null,null,null,null,null,null,null,null,null,null,"","",""]
[null,null,null,null,null,null,null,null,null,null,null,"","",""]
[null,null,null,null,null,null,null,null,null,null,null,"","",""]
[null,null,null,null,null,null,null,null,null,null,null,"","",""]
[null,null,null,null,null,null,null,null,null,null,null,"","",""]
[null,null,null,null,null,null,null,null,null,null,null,"","",""]
[null,null,null,null,null,null,null,null,null,null,null,"","",""]
[null,null,null,null,null,null,null,null,null,null,null,"","",""]
[null,null,null,null,null,null,null,null,null,null,null,"","",""]
[null,null,null,null,null,null,null,null,null,null,null,"","",""]
[null,null,null,null,null,null,null,null,null,null,null,"","",""]
[null,null,null,null,null,null,null,null,null,null,null,"","",""]
[null,null,null,null,null,null,null,null,null,null,null,"","",""]
[null,null,null,null,null,null,null,null,null,null,null,"","",""]
[null,null,null,null,null,null,null,null,null,null,null,"","",""]
[null,null,null,null,null,null,null,null,null,null,null,"","",""]
[null,null,null,null,null,null,null,null,null,null,null,"","",""]
[null,null,null,null,null,null,null,null,null,null,null,"","",""]
[null,null,null,null,null,null,null,null,null,null,null,"","",""]
[null,null,null,null,null,null,null,null,null,null,null,"","",""]
[null,null,null,null,null,null,null,null,null,null,null,"","",""]
[null,null,null,null,null,null,null,null,null,null,null,"","",""]
[null,null,null,null,null,null,null,null,null,null,null,"","",""]
[null,null,null,null,null,null,null,null,null,null,null,"","",""]
[null,null,null,null,null,null,null,null,null,null,null,"","",""]
[null,null,null,null,null,null,null,null,null,null,null,"","",""]
[null,null,null,null,null,null,null,null,null,null,null,"","",""]
[null,null,null,null,null,null,null,null,null,null,null,"","",""]
[null,null,null,null,null,null,null,null,null,null,null,"","",""]
[null,null,null,null,null,null,null,null,null,null,null,"","",""]
[null,null,null,null,null,null,null,null,null,null,null,"","",""]
[null,null,null,null,null,null,null,null,null,null,null,"","",""]
[null,null,null,null,null,null,null,null,null,null,null,"","",""]
[null,null,null,null,null,null,null,null,null,null,null,"","",""]
[null,null,null,null,null,null,null,null,null,null,null,"","",""]
[null,null,null,null,null,null,null,null,null,null,null,"","",""]
[null,null,null,null,null,null,null,null,null,null,null,"","",""]
[null,null,null,null,null,null,null,null,null,null,null,"","",""]
[null,null,null,null,null,null,null,null,null,null,null,"","",""]
[null,null,null,null,null,null,null,null,null,null,null,"","",""]
[null,null,null,null,null,null,null,null,null,null,null,"","",""]
[null,null,null,null,null,null,null,null,null,null,null,"","",""]
[null,null,null,null,null,null,null,null,null,null,null,"","",""]
[null,null,null,null,null,null,null,null,null,null,null,"","",""]
[null,null,null,null,null,null,null,null,null,null,null,"","",""]
[null,null,null,null,null,null,null,null,null,null,null,"","",""]
[null,null,null,null,null,null,null,null,null,null,null,"","",""]
[null,null,null,null,null,null,null,null,null,null,null,"","",""]
[null,null,null,null,null,null,null,null,null,null,null,"","",""]
[null,null,null,null,null,null,null,null,null,null,null,"","",""]
[null,null,null,null,null,null,null,null,null,null,null,"","",""]
[null,null,null,null,null,null,null,null,null,null,null,"","",""]
[null,null,null,null,null,null,null,null,null,null,null,"","",""]
[null,null,null,null,null,null,null,null,null,null,null,"","",""]
[null,null,null,null,null,null,null,null,null,null,null,"","",""]
[null,null,null,null,null,null,null,null,null,null,null,"","",""]
[null,null,null,null,null,null,null,null,null,null,null,"","",""]
[null,null,null,null,null,null,null,null,null,null,null,"","",""]
[null,null,null,null,null,null,null,null,null,null,null,"","",""]
[null,null,null,null,null,null,null,null,null,null,null,"","",""]
[null,null,null,null,null,null,null,null,null,null,null,"","",""]
[null,null,null,null,null,null,null,null,null,null,null,{"$f":"IF(B710=\"\",\"\",AVERAGE(C710:K710))","v":""}]
[null,null,null,null,null,null,null,null,null,null,null,""]
[null,null,null,null,null,null,null,null,null,null,null,""]
[null,null,null,null,null,null,null,null,null,null,null,""]
[null,null,null,null,null,null,null,null,null,null,null,""]
[null,null,null,null,null,null,null,null,null,null,null,""]
[null,null,null,null,null,null,null,null,null,null,null,""]
[null,null,null,null,null,null,null,null,null,null,null,""]
[null,null,null,null,null,null,null,null,null,null,null,""]
[null,null,null,null,null,null,null,null,null,null,null,""]
[null,null,null,null,null,null,null,null,null,null,null,""]
[null,null,null,null,null,null,null,null,null,null,null,""]
[null,null,null,null,null,null,null,null,null,null,null,""]
[null,null,null,null,null,null,null,null,null,null,null,""]
[null,null,null,null,null,null,null,null,null,null,null,""]
[null,null,null,null,null,null,null,null,null,null,null,""]
[null,null,null,null,null,null,null,null,null,null,null,""]
[null,null,null,null,null,null,null,null,null,null,null,""]
[null,null,null,null,null,null,null,null,null,null,null,""]
[null,null,null,null,null,null,null,null,null,null,null,""]
[null,null,null,null,null,null,null,null,null,null,null,""]
[null,null,null,null,null,null,null,null,null,null,null,""]
[null,null,null,null,null,null,null,null,null,null,null,""]
[null,null,null,null,null,null,null,null,null,null,null,""]
[null,null,null,null,null,null,null,null,null,null,null,""]
[null,null,null,null,null,null,null,null,null,null,null,""]
[null,null,null,null,null,null,null,null,null,null,null,""]
[null,null,null,null,null,null,null,null,null,null,null,""]
[null,null,null,null,null,null,null,null,null,null,null,""]
[null,null,null,null,null,null,null,null,null,null,null,""]
[null,null,null,null,null,null,null,null,null,null,null,""]
[null,null,null,null,null,null,null,null,null,null,null,""]
[null,null,null,null,null,null,null,null,null,null,null,""]
[null,null,null,null,null,null,null,null,null,null,null,""]
[null,null,null,null,null,null,null,null,null,null,null,""]
[null,null,null,null,null,null,null,null,null,null,null,""]
[null,null,null,null,null,null,null,null,null,null,null,""]
[null,null,null,null,null,null,null,null,null,null,null,""]
[null,null,null,null,null,null,null,null,null,null,null,""]
[null,null,null,null,null,null,null,null,null,null,null,""]
[null,null,null,null,null,null,null,null,null,null,null,""]
[null,null,null,null,null,null,null,null,null,null,null,""]
[null,null,null,null,null,null,null,null,null,null,null,""]
[null,null,null,null,null,null,null,null,null,null,null,""]
[null,null,null,null,null,null,null,null,null,null,null,""]
[null,null,null,null,null,null,null,null,null,null,null,""]
[null,null,null,null,null,null,null,null,null,null,null,""]
[null,null,null,null,null,null,null,null,null,null,null,""]
[null,null,null,null,null,null,null,null,null,null,null,""]
[null,null,null,null,null,null,null,null,null,null,null,""]
[null,null,null,null,null,null,null,null,null,null,null,""]
[null,null,null,null,null,null,null,null,null,null,null,""]
[null,null,null,null,null,null,null,null,null,null,null,""]
[null,null,null,null,null,null,null,null,null,null,null,""]
[null,null,null,null,null,null,null,null,null,null,null,""]
[null,null,null,null,null,null,null,null,null,null,null,""]
[null,null,null,null,null,null,null,null,null,null,null,""]
[null,null,null,null,null,null,null,null,null,null,null,""]
[null,null,null,null,null,null,null,null,null,null,null,""]
[null,null,null,null,null,null,null,null,null,null,null,""]
[null,null,null,null,null,null,null,null,null,null,null,""]
[null,null,null,null,null,null,null,null,null,null,null,""]
[null,null,null,null,null,null,null,null,null,null,null,""]
[null,null,null,null,null,null,null,null,null,null,null,""]
[null,null,null,null,null,null,null,null,null,null,null,{"$f":"IF(B774=\"\",\"\",AVERAGE(C774:K774))","v":""}]
[null,null,null,null,null,null,null,null,null,null,null,""]
[null,null,null,null,null,null,null,null,null,null,null,""]
[null,null,null,null,null,null,null,null,null,null,null,""]
[null,null,null,null,null,null,null,null,null,null,null,""]
[null,null,null,null,null,null,null,null,null,null,null,""]
[null,null,null,null,null,null,null,null,null,null,null,""]

{"sheet":"Control","index":2,"n_rows":70,"n_cols":22,"rows_kept":70,"cut":false,"hidden":true,"merged":[]}
[]
[null,null,"Control"]
[]
[]
[null,null,"Selection",3,null,null,null,null,null,null,"D_Pam1","D_Riv1","D_Fla1","D_Gra1","D_Sav1","D_Bla1","D_Por1","D_Mok1","D_Pla1","D_Isl"]
[null,null,null,null,null,null,null,null,null,"Selection",179.7,146.80000000000001,297.5,260.60000000000002,246.9,254.6,39.700000000000003,234.3,197.6,{"$f":"IF(J6=\"\",\"\",AVERAGE(K6:S6))","v":206.4111111111111},{"$f":"IF(J6=\"\",\"\",MIN(K6:S6))","v":39.700000000000003},{"$f":"IF(J6=\"\",\"\",MAX(K6:S6))","v":297.5}]
[null,null,"Darkness",5,"the smaller the darker (max: 5,21)"]
[]
[null,null,"Steps","Threshold","RGB","Min / Max"]
[null,null,{"$f":"C11+$D$7","v":245},{"$f":"F11","v":39.700000000000003},{"$f":"udf_RGB(C10,C10,C10)","v":16119285},297.5]
[null,null,240,{"$f":"D10+$F$12","v":45.07083333333334},{"$f":"udf_RGB(C11,C11,C11)","v":15790320},39.700000000000003]
[null,null,235,{"$f":"D11+$F$12","v":50.441666666666677},{"$f":"udf_RGB(C12,C12,C12)","v":15461355},{"$f":"(F10-F11)/(COUNT($C$10:$C$59)-2)","v":5.3708333333333336}]
[null,null,230,55.812500000000014,15132390]
[null,null,225,61.183333333333351,14803425]
[null,null,220,66.554166666666688,14474460]
[null,null,215,71.925000000000026,14145495]
[null,null,210,77.295833333333363,13816530]
[null,null,205,82.6666666666667,13487565]
[null,null,200,88.037500000000037,13158600]
[null,null,195,93.408333333333374,12829635]
[null,null,190,98.779166666666711,12500670]
[null,null,185,104.15000000000005,12171705]
[null,null,180,109.52083333333339,11842740]
[null,null,175,114.89166666666672,11513775]
[null,null,170,120.26250000000006,11184810]
[null,null,165,125.6333333333334,10855845]
[null,null,160,131.00416666666672,10526880]
[null,null,155,136.37500000000006,10197915]
[null,null,150,141.74583333333339,9868950]
[null,null,145,147.11666666666673,9539985]
[null,null,140,152.48750000000007,9211020]
[null,null,135,157.85833333333341,8882055]
[null,null,130,163.22916666666674,8553090]
[null,null,125,168.60000000000008,8224125]
[null,null,120,173.97083333333342,7895160]
[null,null,115,179.34166666666675,7566195]
[null,null,110,184.71250000000009,7237230]
[null,null,105,190.08333333333343,6908265]
[null,null,100,195.45416666666677,6579300]
[null,null,95,200.8250000000001,6250335]
[null,null,90,206.19583333333344,5921370]
[null,null,85,211.56666666666678,5592405]
[null,null,80,{"$f":"D42+$F$12","v":216.93750000000011},5263440]
[null,null,75,222.30833333333345,4934475]
[null,null,70,227.67916666666679,4605510]
[null,null,65,233.05000000000013,4276545]
[null,null,60,238.42083333333346,3947580]
[null,null,55,243.7916666666668,3618615]
[null,null,50,249.16250000000014,3289650]
[null,null,45,254.53333333333347,2960685]
[null,null,40,259.90416666666681,2631720]
[null,null,35,265.27500000000015,2302755]
[null,null,30,270.64583333333348,1973790]
[null,null,25,276.01666666666682,1644825]
[null,null,20,281.38750000000016,1315860]
[null,null,15,286.7583333333335,986895]
[null,null,10,292.12916666666683,657930]
[null,null,{"$f":"C59+$D$7","v":5},297.50000000000017,328965]
[null,null,0,302.87083333333351,0]
[]
[null,null,"Name","Autoshape"]
[null,null,"D_Pam","Pam"]
[null,null,"D_Riv","Riv"]
[null,null,"D_Fla","Fla"]
[null,null,"D_Gra","Gra"]
[null,null,"D_Sav","Sav"]
[null,null,"D_Bla","Bla"]
[null,null,"D_Por","Por"]
[null,null,"D_Mok","Mok"]
[null,null,"D_Pla","Pla"]